fUST/lending_fUST_20240721
["ID","MTS","AMOUNT","RATE_DAILY","PERIOD"]
[332780157,1721518240586,-500.0,0.00013698,2]
[332780158,1721518240596,-500.0,0.00013698,2]
[332780159,1721518240606,-500.0,0.00013698,2]
[332780160,1721518240616,-2004.87,0.00013698,2]
[332780161,1721518240626,-500.0,0.00013698,2]
[332780162,1721518240636,-500.0,0.00013698,2]
[332780163,1721518240645,-193.47418578,0.00013698,2]
[332780164,1721518240656,-500.0,0.00013698,2]
[332780165,1721518240666,-500.0,0.00013698,2]
[332780166,1721518240676,-500.0,0.00013698,2]
[332780167,1721518240685,-505.11920375,0.00013698,2]
[332780168,1721518240697,-500.0,0.00013698,2]
[332780169,1721518240708,-500.0,0.00013698,2]
[332780170,1721518240718,-500.0,0.00013698,2]
[332780171,1721518240731,-500.0,0.00013698,2]
[332780172,1721518240743,-500.0,0.00013698,2]
[332780173,1721518240756,-500.0,0.00013698,2]
[332780174,1721518240765,-500.0,0.00013698,2]
[332780175,1721518240775,-2327.29,0.00013698,2]
[332780176,1721518240785,-500.0,0.00013698,2]
[332780177,1721518240795,-296.05322086,0.00013698,2]
[332780178,1721518240805,-500.0,0.00013698,2]
[332780179,1721518240814,-500.0,0.00013698,2]
[332780180,1721518240823,-1178.7,0.00013698,2]
[332780181,1721518240833,-500.0,0.00013698,2]
[332780182,1721518240843,-500.0,0.00013698,2]
[332780183,1721518240852,-500.0,0.00013698,2]
[332780184,1721518240862,-500.0,0.00013698,2]
[332780185,1721518240872,-589.15,0.00013698,2]
[332780186,1721518240881,-500.0,0.00013698,2]
[332780187,1721518240891,-510.80465162,0.00013698,2]
[332780188,1721518240900,-500.0,0.00013698,2]
[332780189,1721518240910,-500.0,0.00013698,2]
[332780190,1721518240919,-500.0,0.00013698,2]
[332780191,1721518240930,-500.0,0.00013698,2]
[332780192,1721518240940,-482.34424015,0.00013698,2]
[332780193,1721518240949,-500.0,0.00013698,2]
[332780194,1721518240959,-500.0,0.00013698,2]
[332780195,1721518240968,-500.0,0.00013698,2]
[332780196,1721518240980,-502.01108199,0.00013698,2]
[332780197,1721518240990,-502.41928809,0.00013698,2]
[332780198,1721518240999,-500.0,0.00013698,2]
[332780199,1721518241009,-500.0,0.00013698,2]
[332780200,1721518241018,-554.99193017,0.00013698,2]
[332780201,1721518241028,-500.0,0.00013698,2]
[332780202,1721518241037,-503.24791271,0.00013698,2]
[332780203,1721518241047,-2007.06,0.00013698,2]
[332780204,1721518241056,-500.0,0.00013698,2]
[332780205,1721518241066,-379.43937947,0.00013698,2]
[332780206,1721518241075,-500.0,0.00013698,2]
[332780207,1721518241085,-629.05,0.00013698,2]
[332780208,1721518241095,-1517.91,0.00013698,2]
[332780209,1721518241105,-500.0,0.00013698,2]
[332780210,1721518241115,-608.4,0.00013698,2]
[332780211,1721518241124,-767.64,0.00013698,2]
[332780212,1721518241134,-500.0,0.00013698,2]
[332780213,1721518241143,-500.0,0.00013698,2]
[332780214,1721518241153,-500.0,0.00013698,2]
[332780215,1721518241163,-589.05,0.00013698,2]
[332780216,1721518241172,-500.0,0.00013698,2]
[332780217,1721518241182,-698.04,0.00013698,2]
[332780218,1721518241191,-500.0,0.00013698,2]
[332780219,1721518241202,-258.57234386,0.00013698,2]
[332780220,1721518241215,-500.0,0.00013698,2]
[332780221,1721518241225,-500.0,0.00013698,2]
[332780222,1721518241235,-500.0,0.00013698,2]
[332780223,1721518241244,-2766.3,0.00013698,2]
[332780224,1721518241253,-500.0,0.00013698,2]
[332780225,1721518241263,-577.81,0.00013698,2]
[332780226,1721518241273,-526.1689231,0.00013698,2]
[332780227,1721518241282,-500.0,0.00013698,2]
[332780228,1721518241291,-500.0,0.00013698,2]
[332780229,1721518241301,-2025.85,0.00013698,2]
[332780230,1721518241311,-500.0,0.00013698,2]
[332780231,1721518241321,-500.0,0.00013698,2]
[332780232,1721518241330,-2922.57,0.00013698,2]
[332780233,1721518241341,-688.33,0.00013698,2]
[332780234,1721518241351,-500.0,0.00013698,2]
[332780235,1721518241361,-521.9237096,0.00013698,2]
[332780236,1721518241375,-500.0,0.00013698,2]
[332780237,1721518241385,-500.0,0.00013698,2]
[332780238,1721518241394,-500.0,0.00013698,2]
[332780239,1721518241405,-662.51,0.00013698,2]
[332780240,1721518241415,-833.89,0.00013698,2]
[332780241,1721518241424,-500.0,0.00013698,2]
[332780242,1721518241435,-1186.22,0.00013698,2]
[332780243,1721518241445,-938.32,0.00013698,2]
[332780244,1721518241455,-2113.08,0.00013698,2]
[332780245,1721518241465,-500.0,0.00013698,2]
[332780246,1721518241475,-500.0,0.00013698,2]
[332780247,1721518241484,-500.0,0.00013698,2]
[332780248,1721518241494,-500.0,0.00013698,2]
[332780249,1721518241503,-500.0,0.00013698,2]
[332780250,1721518241513,-502.60980733,0.00013698,2]
[332780251,1721518241522,-500.0,0.00013698,2]
[332780252,1721518241533,-500.0,0.00013698,2]
[332780253,1721518241542,-500.0,0.00013698,2]
[332780254,1721518241551,-500.0,0.00013698,2]
[332780255,1721518241561,-500.0,0.00013698,2]
[332780256,1721518241571,-500.0,0.00013698,2]
[332780257,1721518241581,-500.0,0.00013698,2]
[332780258,1721518241590,-500.0,0.00013698,2]
[332780259,1721518241600,-500.0,0.00013698,2]
[332780260,1721518241609,-500.0,0.00013698,2]
[332780261,1721518241620,-500.0,0.00013698,2]
[332780262,1721518241631,-500.0,0.00013698,2]
[332780263,1721518241643,-500.0,0.00013698,2]
[332780264,1721518241654,-564.55397441,0.00013698,2]
[332780265,1721518241665,-500.0,0.00013698,2]
[332780266,1721518241674,-500.0,0.00013698,2]
[332780267,1721518241685,-500.0,0.00013698,2]
[332780268,1721518241695,-500.0,0.00013698,2]
[332780269,1721518241706,-500.0,0.00013698,2]
[332780270,1721518241715,-500.0,0.00013698,2]
[332780271,1721518241726,-500.0,0.00013698,2]
[332780272,1721518241737,-436.50278099,0.00013698,2]
[332780273,1721518241749,-500.0,0.00013698,2]
[332780274,1721518241760,-500.0,0.00013698,2]
[332780275,1721518241771,-500.0,0.00013698,2]
[332780276,1721518241782,-500.0,0.00013698,2]
[332780277,1721518241792,-500.0,0.00013698,2]
[332780278,1721518241803,-808.88,0.00013698,2]
[332780279,1721518241812,-500.0,0.00013698,2]
[332780280,1721518241822,-1145.07,0.00013698,2]
[332780281,1721518241834,-500.0,0.00013698,2]
[332780282,1721518241844,-500.0,0.00013698,2]
[332780283,1721518241853,-524.23517975,0.00013698,2]
[332780284,1721518241863,-825.81,0.00013698,2]
[332780285,1721518241873,-504.29336531,0.00013698,2]
[332780286,1721518241883,-500.0,0.00013698,2]
[332780287,1721518241894,-500.0,0.00013698,2]
[332780288,1721518241903,-500.0,0.00013698,2]
[332780289,1721518241913,-501.71905467,0.00013698,2]
[332780290,1721518241923,-500.0,0.00013698,2]
[332780291,1721518241932,-500.81639661,0.00013698,2]
[332780292,1721518241942,-500.0,0.00013698,2]
[332780293,1721518241952,-500.0,0.00013698,2]
[332780294,1721518241962,-500.0,0.00013698,2]
[332780295,1721518241971,-500.0,0.00013698,2]
[332780296,1721518241982,-500.0,0.00013698,2]
[332780297,1721518241993,-500.0,0.00013698,2]
[332780298,1721518242003,-500.0,0.00013698,2]
[332780299,1721518242014,-500.0,0.00013698,2]
[332780300,1721518242026,-500.0,0.00013698,2]
[332780301,1721518242035,-500.0,0.00013698,2]
[332780302,1721518242045,-500.0,0.00013698,2]
[332780303,1721518242055,-500.0,0.00013698,2]
[332780304,1721518242064,-500.0,0.00013698,2]
[332780305,1721518242073,-500.0,0.00013698,2]
[332780306,1721518242083,-674.93,0.00013698,2]
[332780307,1721518242093,-500.0,0.00013698,2]
[332780308,1721518242103,-526.07354938,0.00013698,2]
[332780309,1721518242113,-858.74,0.00013698,2]
[332780310,1721518242123,-500.0,0.00013698,2]
[332780311,1721518242134,-501.41672592,0.00013698,2]
[332780312,1721518242145,-500.0,0.00013698,2]
[332780313,1721518242156,-500.0,0.00013698,2]
[332780314,1721518242165,-500.0,0.00013698,2]
[332780315,1721518242175,-4135.28,0.00013698,2]
[332780316,1721518242186,-583.09,0.00013698,2]
[332780317,1721518242197,-878.98,0.00013698,2]
[332780318,1721518242208,-1110.82,0.00013698,2]
[332780319,1721518242219,-500.0,0.00013698,2]
[332780320,1721518242231,-505.51177365,0.00013698,2]
[332780321,1721518242240,-572.82,0.00013698,2]
[332780322,1721518242251,-1511.84,0.00013698,2]
[332780323,1721518242262,-500.0,0.00013698,2]
[332780324,1721518242274,-500.0,0.00013698,2]
[332780325,1721518242284,-500.0,0.00013698,2]
[332780326,1721518242295,-500.0,0.00013698,2]
[332780327,1721518242307,-500.0,0.00013698,2]
[332780328,1721518242318,-500.0,0.00013698,2]
[332780329,1721518242328,-500.0,0.00013698,2]
[332780331,1721518242339,-500.0,0.00013698,2]
[332780332,1721518242348,-500.0,0.00013698,2]
[332780333,1721518242358,-508.26067734,0.00013698,2]
[332780334,1721518242374,-2000.0,0.00013698,2]
[332780336,1721518242383,-500.0,0.00013698,2]
[332780337,1721518242393,-1804.8,0.00013698,2]
[332780338,1721518242404,-500.0,0.00013698,2]
[332780339,1721518242415,-824.76,0.00013698,2]
[332780340,1721518242425,-500.0,0.00013698,2]
[332780341,1721518242434,-500.0,0.00013698,2]
[332780342,1721518242449,-500.0,0.00013698,2]
[332780343,1721518242459,-500.0,0.00013698,2]
[332780344,1721518242470,-501.14776022,0.00013698,2]
[332780345,1721518242479,-500.0,0.00013698,2]
[332780346,1721518242490,-500.0,0.00013698,2]
[332780347,1721518242499,-500.0,0.00013698,2]
[332780348,1721518242510,-500.0,0.00013698,2]
[332780349,1721518242521,-500.0,0.00013698,2]
[332780350,1721518242531,-500.0,0.00013698,2]
[332780351,1721518242541,-602.35,0.00013698,2]
[332780352,1721518242552,-556.87,0.00013698,2]
[332780353,1721518242562,-500.0,0.00013698,2]
[332780354,1721518242573,-500.0,0.00013698,2]
[332780355,1721518242583,-500.0,0.00013698,2]
[332780356,1721518242595,-592.17800272,0.00013698,2]
[332780357,1721518242606,-500.0,0.00013698,2]
[332780358,1721518242616,-507.41895197,0.00013698,2]
[332780359,1721518242627,-500.0,0.00013698,2]
[332780360,1721518242637,-500.0,0.00013698,2]
[332780361,1721518242647,-500.0,0.00013698,2]
[332780362,1721518242659,-500.0,0.00013698,2]
[332780363,1721518242671,-500.0,0.00013698,2]
[332780364,1721518242681,-500.0,0.00013698,2]
[332780365,1721518242692,-644.94,0.00013698,2]
[332780366,1721518242702,-503.66910884,0.00013698,2]
[332780367,1721518242713,-500.0,0.00013698,2]
[332780368,1721518242724,-791.54,0.00013698,2]
[332780369,1721518242735,-500.0,0.00013698,2]
[332780370,1721518242746,-500.0,0.00013698,2]
[332780371,1721518242757,-500.0,0.00013698,2]
[332780372,1721518242768,-500.0,0.00013698,2]
[332780373,1721518242778,-500.0,0.00013698,2]
[332780374,1721518242787,-581.90704144,0.00013698,2]
[332780375,1721518242798,-1819.62,0.00013698,2]
[332780376,1721518242807,-500.0,0.00013698,2]
[332780378,1721518242817,-500.0,0.00013698,2]
[332780380,1721518242827,-500.0,0.00013698,2]
[332780382,1721518242836,-500.0,0.00013698,2]
[332780384,1721518242845,-629.33145521,0.00013698,2]
[332780385,1721518242855,-500.0,0.00013698,2]
[332780387,1721518242865,-500.0,0.00013698,2]
[332780389,1721518242875,-500.0,0.00013698,2]
[332780390,1721518242884,-500.0,0.00013698,2]
[332780391,1721518242893,-500.0,0.00013698,2]
[332780393,1721518242903,-485.98350641,0.00013698,2]
[332780394,1721518242913,-500.0,0.00013698,2]
[332780395,1721518242923,-500.0,0.00013698,2]
[332780396,1721518242933,-500.0,0.00013698,2]
[332780397,1721518242943,-500.0,0.00013698,2]
[332780398,1721518242952,-500.0,0.00013698,2]
[332780399,1721518242962,-500.0,0.00013698,2]
[332780400,1721518242971,-500.0,0.00013698,2]
[332780401,1721518242982,-500.0,0.00013698,2]
[332780402,1721518242993,-500.0,0.00013698,2]
[332780403,1721518243002,-500.0,0.00013698,2]
[332780404,1721518243012,-500.0,0.00013698,2]
[332780405,1721518243023,-500.0,0.00013698,2]
[332780406,1721518243035,-500.0,0.00013698,2]
[332780407,1721518243047,-500.0,0.00013698,2]
[332780408,1721518243057,-500.0,0.00013698,2]
[332780409,1721518243067,-500.0,0.00013698,2]
[332780411,1721518243076,-500.0,0.00013698,2]
[332780412,1721518243086,-500.0,0.00013698,2]
[332780413,1721518243096,-500.0,0.00013698,2]
[332780414,1721518243106,-500.0,0.00013698,2]
[332780415,1721518243116,-305.0,0.00013698,2]
[332780416,1721518243125,-500.0,0.00013698,2]
[332780417,1721518243134,-500.0,0.00013698,2]
[332780418,1721518243144,-500.0,0.00013698,2]
[332780419,1721518243154,-500.0,0.00013698,2]
[332780420,1721518243164,-500.0,0.00013698,2]
[332780421,1721518243174,-500.0,0.00013698,2]
[332780422,1721518243184,-228.13644181,0.00013698,2]
[332780424,1721518243195,-155.01878747,0.00013698,2]
[332780425,1721518243205,-500.0,0.00013698,2]
[332780426,1721518243214,-500.0,0.00013698,2]
[332780428,1721518243224,-500.0,0.00013698,2]
[332780430,1721518243234,-500.0,0.00013698,2]
[332780432,1721518243243,-503.48851002,0.00013698,2]
[332780435,1721518243252,-500.0,0.00013698,2]
[332780437,1721518243262,-555.28,0.00013698,2]
[332780439,1721518243271,-797.72,0.00013698,2]
[332780441,1721518243281,-500.0,0.00013698,2]
[332780443,1721518243290,-500.0,0.00013698,2]
[332780444,1721518243300,-500.0,0.00013698,2]
[332780445,1721518243309,-500.0,0.00013698,2]
[332780446,1721518243318,-525.0,0.00013698,2]
[332780447,1721518243327,-500.0,0.00013698,2]
[332780448,1721518243337,-500.0,0.00013698,2]
[332780449,1721518243347,-555.5,0.00013698,2]
[332780450,1721518243358,-500.0,0.00013698,2]
[332780451,1721518243375,-500.0,0.00013698,2]
[332780452,1721518243385,-500.0,0.00013698,2]
[332780453,1721518243394,-500.0,0.00013698,2]
[332780454,1721518243405,-500.0,0.00013698,2]
[332780455,1721518243417,-545.35,0.00013698,2]
[332780456,1721518243427,-500.0,0.00013698,2]
[332780457,1721518243437,-500.0,0.00013698,2]
[332780458,1721518243448,-500.0,0.00013698,2]
[332780459,1721518243458,-500.0,0.00013698,2]
[332780460,1721518243468,-859.26,0.00013698,2]
[332780461,1721518243478,-500.0,0.00013698,2]
[332780462,1721518243487,-500.0,0.00013698,2]
[332780463,1721518243497,-500.0,0.00013698,2]
[332780464,1721518243506,-867.9,0.00013698,2]
[332780465,1721518243515,-1135.52,0.00013698,2]
[332780466,1721518243524,-500.0,0.00013698,2]
[332780467,1721518243533,-502.71055859,0.00013698,2]
[332780468,1721518243542,-500.0,0.00013698,2]
[332780469,1721518243552,-500.0,0.00013698,2]
[332780470,1721518243561,-500.0,0.00013698,2]
[332780471,1721518243571,-500.0,0.00013698,2]
[332780472,1721518243581,-500.0,0.00013698,2]
[332780473,1721518243591,-500.0,0.00013698,2]
[332780474,1721518243600,-500.0,0.00013698,2]
[332780475,1721518243610,-500.0,0.00013698,2]
[332780476,1721518243619,-477.10124464,0.00013698,2]
[332780477,1721518243629,-500.0,0.00013698,2]
[332780478,1721518243639,-500.0,0.00013698,2]
[332780479,1721518243648,-500.0,0.00013698,2]
[332780480,1721518243657,-500.0,0.00013698,2]
[332780481,1721518243666,-500.0,0.00013698,2]
[332780482,1721518243676,-500.0,0.00013698,2]
[332780483,1721518243685,-519.20187888,0.00013698,2]
[332780484,1721518243694,-500.0,0.00013698,2]
[332780485,1721518243704,-500.0,0.00013698,2]
[332780486,1721518243713,-1692.13,0.00013698,2]
[332780487,1721518243722,-907.91,0.00013698,2]
[332780488,1721518243732,-500.0,0.00013698,2]
[332780489,1721518243741,-500.0,0.00013698,2]
[332780490,1721518243750,-184.7031653,0.00013698,2]
[332780491,1721518243760,-500.0,0.00013698,2]
[332780492,1721518243769,-500.0,0.00013698,2]
[332780493,1721518243779,-500.0,0.00013698,2]
[332780494,1721518243789,-500.0,0.00013698,2]
[332780495,1721518243798,-836.33,0.00013698,2]
[332780496,1721518243807,-512.82149887,0.00013698,2]
[332780497,1721518243817,-500.0,0.00013698,2]
[332780498,1721518243826,-500.0,0.00013698,2]
[332780499,1721518243835,-500.0,0.00013698,2]
[332780500,1721518243845,-1029.32,0.00013698,2]
[332780501,1721518243854,-500.0,0.00013698,2]
[332780502,1721518243864,-503.26230397,0.00013698,2]
[332780503,1721518243874,-509.288735,0.00013698,2]
[332780504,1721518243883,-500.0,0.00013698,2]
[332780505,1721518243893,-1609.23,0.00013698,2]
[332780506,1721518243903,-500.0,0.00013698,2]
[332780507,1721518243913,-500.0,0.00013698,2]
[332780508,1721518243922,-500.0,0.00013698,2]
[332780509,1721518243932,-2605.92,0.00013698,2]
[332780510,1721518243942,-500.0,0.00013698,2]
[332780511,1721518243951,-500.0,0.00013698,2]
[332780512,1721518243961,-500.0,0.00013698,2]
[332780513,1721518243970,-1892.2,0.00013698,2]
[332780514,1721518243981,-500.0,0.00013698,2]
[332780515,1721518243991,-500.0,0.00013698,2]
[332780516,1721518244000,-500.0,0.00013698,2]
[332780517,1721518244010,-501.47697445,0.00013698,2]
[332780518,1721518244019,-500.0,0.00013698,2]
[332780519,1721518244029,-500.0,0.00013698,2]
[332780520,1721518244038,-500.0,0.00013698,2]
[332780521,1721518244047,-500.0,0.00013698,2]
[332780522,1721518244056,-500.0,0.00013698,2]
[332780523,1721518244066,-553.54,0.00013698,2]
[332780524,1721518244075,-500.0,0.00013698,2]
[332780525,1721518244084,-500.0,0.00013698,2]
[332780526,1721518244093,-500.0,0.00013698,2]
[332780527,1721518244102,-245.72312322,0.00013698,2]
[332780528,1721518244112,-500.0,0.00013698,2]
[332780529,1721518244121,-500.0,0.00013698,2]
[332780530,1721518244131,-500.0,0.00013698,2]
[332780531,1721518244140,-1950.83,0.00013698,2]
[332780532,1721518244149,-500.0,0.00013698,2]
[332780533,1721518244159,-500.0,0.00013698,2]
[332780534,1721518244169,-500.0,0.00013698,2]
[332780535,1721518244178,-500.0,0.00013698,2]
[332780536,1721518244187,-1247.1,0.00013698,2]
[332780537,1721518244197,-500.0,0.00013698,2]
[332780538,1721518244206,-500.0,0.00013698,2]
[332780539,1721518244216,-500.0,0.00013698,2]
[332780540,1721518244225,-1876.93,0.00013698,2]
[332780541,1721518244234,-1764.74,0.00013698,2]
[332780542,1721518244244,-501.40323975,0.00013698,2]
[332780543,1721518244253,-500.0,0.00013698,2]
[332780544,1721518244263,-500.0,0.00013698,2]
[332780545,1721518244272,-500.0,0.00013698,2]
[332780546,1721518244282,-500.0,0.00013698,2]
[332780547,1721518244291,-500.0,0.00013698,2]
[332780548,1721518244301,-500.0,0.00013698,2]
[332780549,1721518244310,-500.0,0.00013698,2]
[332780550,1721518244319,-500.0,0.00013698,2]
[332780551,1721518244329,-500.0,0.00013698,2]
[332780552,1721518244338,-1616.59,0.00013698,2]
[332780553,1721518244534,-331.2748699,0.00013698,2]
[332780554,1721518244544,-500.0,0.00013698,2]
[332780555,1721518244554,-500.0,0.00013698,2]
[332780556,1721518244564,-500.0,0.00013698,2]
[332780557,1721518244575,-500.0,0.00013698,2]
[332780558,1721518244585,-500.0,0.00013698,2]
[332780559,1721518244595,-2335.04,0.00013698,2]
[332780560,1721518244605,-500.4941119,0.00013698,2]
[332780561,1721518244614,-555.37,0.00013698,2]
[332780562,1721518244623,-500.0,0.00013698,2]
[332780563,1721518244633,-500.0,0.00013698,2]
[332780564,1721518244643,-500.0,0.00013698,2]
[332780565,1721518244652,-500.0,0.00013698,2]
[332780566,1721518244662,-500.0,0.00013698,2]
[332780567,1721518244671,-500.0,0.00013698,2]
[332780568,1721518244681,-500.0,0.00013698,2]
[332780569,1721518244691,-500.0,0.00013698,2]
[332780570,1721518244700,-500.0,0.00013698,2]
[332780571,1721518244710,-685.01,0.00013698,2]
[332780572,1721518244719,-500.0,0.00013698,2]
[332780573,1721518244730,-753.04,0.00013698,2]
[332780574,1721518244741,-500.0,0.00013698,2]
[332780575,1721518244751,-500.0,0.00013698,2]
[332780576,1721518244760,-500.0,0.00013698,2]
[332780577,1721518244770,-500.0,0.00013698,2]
[332780578,1721518244779,-500.0,0.00013698,2]
[332780579,1721518244789,-500.0,0.00013698,2]
[332780580,1721518244799,-524.86017018,0.00013698,2]
[332780581,1721518244810,-2675.51,0.00013698,2]
[332780582,1721518244820,-503.14598103,0.00013698,2]
[332780583,1721518244829,-500.0,0.00013698,2]
[332780584,1721518244840,-500.0,0.00013698,2]
[332780585,1721518244850,-500.0,0.00013698,2]
[332780586,1721518244859,-500.0,0.00013698,2]
[332780587,1721518244868,-500.0,0.00013698,2]
[332780588,1721518244879,-1042.84,0.00013698,2]
[332780589,1721518244888,-500.0,0.00013698,2]
[332780590,1721518244898,-500.0,0.00013698,2]
[332780591,1721518244908,-504.23049951,0.00013698,2]
[332780592,1721518244919,-923.67,0.00013698,2]
[332780593,1721518244930,-504.74873459,0.00013698,2]
[332780594,1721518244939,-500.0,0.00013698,2]
[332780595,1721518244949,-2166.72,0.00013698,2]
[332780596,1721518244958,-500.0,0.00013698,2]
[332780597,1721518244967,-500.0,0.00013698,2]
[332780598,1721518244977,-500.0,0.00013698,2]
[332780599,1721518244986,-849.12,0.00013698,2]
[332780600,1721518244997,-500.0,0.00013698,2]
[332780601,1721518245007,-500.0,0.00013698,2]
[332780602,1721518245018,-500.0,0.00013698,2]
[332780603,1721518245028,-1041.22,0.00013698,2]
[332780604,1721518245038,-398.38256931,0.00013698,2]
[332780605,1721518245047,-503.70346198,0.00013698,2]
[332780606,1721518245057,-500.0,0.00013698,2]
[332780607,1721518245068,-2104.59,0.00013698,2]
[332780608,1721518245078,-868.47,0.00013698,2]
[332780609,1721518245088,-500.0,0.00013698,2]
[332780610,1721518245098,-1307.06,0.00013698,2]
[332780611,1721518245107,-500.0,0.00013698,2]
[332780612,1721518245117,-653.69,0.00013698,2]
[332780613,1721518245127,-500.0,0.00013698,2]
[332780614,1721518245139,-500.0,0.00013698,2]
[332780615,1721518245149,-500.0,0.00013698,2]
[332780616,1721518245160,-507.89472845,0.00013698,2]
[332780617,1721518245171,-500.0,0.00013698,2]
[332780618,1721518245181,-29094.81,0.00013698,2]
[332780619,1721518245190,-659.37,0.00013698,2]
[332780620,1721518245199,-500.0,0.00013698,2]
[332780621,1721518245209,-1419.88,0.00013698,2]
[332780622,1721518245219,-500.0,0.00013698,2]
[332780623,1721518245228,-660.14,0.00013698,2]
[332780624,1721518245238,-3196.13,0.00013698,2]
[332780625,1721518245248,-500.0,0.00013698,2]
[332780626,1721518245257,-500.0,0.00013698,2]
[332780627,1721518245267,-569.4009346,0.00013698,2]
[332780629,1721518245276,-500.0,0.00013698,2]
[332780630,1721518245285,-600.09,0.00013698,2]
[332780631,1721518245294,-1939.64,0.00013698,2]
[332780632,1721518245304,-500.0,0.00013698,2]
[332780633,1721518245313,-501.25801672,0.00013698,2]
[332780634,1721518245322,-7394.48,0.00013698,2]
[332780635,1721518245332,-500.0,0.00013698,2]
[332780636,1721518245341,-1650.73,0.00013698,2]
[332780637,1721518245350,-500.0,0.00013698,2]
[332780638,1721518245359,-1109.67,0.00013698,2]
[332780639,1721518245373,-611.01,0.00013698,2]
[332780640,1721518245383,-500.0,0.00013698,2]
[332780641,1721518245392,-1170.85,0.00013698,2]
[332780642,1721518245403,-500.0,0.00013698,2]
[332780643,1721518245415,-533.56,0.00013698,2]
[332780644,1721518245426,-500.0,0.00013698,2]
[332780645,1721518245436,-500.0,0.00013698,2]
[332780646,1721518245450,-500.0,0.00013698,2]
[332780647,1721518245462,-709.33,0.00013698,2]
[332780648,1721518245474,-656.72,0.00013698,2]
[332780649,1721518245485,-500.08985855,0.00013698,2]
[332780650,1721518245495,-500.0,0.00013698,2]
[332780651,1721518245506,-810.53,0.00013698,2]
[332780652,1721518245516,-501.22838301,0.00013698,2]
[332780653,1721518245526,-500.0,0.00013698,2]
[332780654,1721518245537,-500.0,0.00013698,2]
[332780655,1721518245547,-500.0,0.00013698,2]
[332780656,1721518245558,-500.0,0.00013698,2]
[332780657,1721518245568,-2255.54,0.00013698,2]
[332780658,1721518245578,-3429.36,0.00013698,2]
[332780659,1721518245589,-1252.85,0.00013698,2]
[332780660,1721518245598,-707.47,0.00013698,2]
[332780661,1721518245607,-4215.35,0.00013698,2]
[332780662,1721518245617,-8367.53,0.00013698,2]
[332780663,1721518245627,-500.0,0.00013698,2]
[332780664,1721518245637,-500.0,0.00013698,2]
[332780665,1721518245647,-614.62,0.00013698,2]
[332780666,1721518245658,-5601.84,0.00013698,2]
[332780667,1721518245668,-502.92442484,0.00013698,2]
[332780668,1721518245678,-500.0,0.00013698,2]
[332780669,1721518245689,-2579.67,0.00013698,2]
[332780670,1721518245700,-16858.36,0.00013698,2]
[332780671,1721518245712,-500.0,0.00013698,2]
[332780672,1721518245724,-511.47376649,0.00013698,2]
[332780673,1721518245736,-500.0,0.00013698,2]
[332780674,1721518245746,-500.0,0.00013698,2]
[332780675,1721518245756,-500.0,0.00013698,2]
[332780676,1721518245767,-500.0,0.00013698,2]
[332780677,1721518245777,-5035.15,0.00013698,2]